[Event "Titled Tuesday Blitz June 28 Late 2022"]
[White "Averjanov, Alexey"]
[Black "Perske, Thore"]
[WhiteFideId "14109867"]
[BlackFideId "12902195"]
[WhiteElo "2671"]
[BlackElo "2503"]
[Result "0-1"]
[Round "07"]
[TimeControl "180+1"]
[Date "2022.06.29"]
[WhiteClock "0:00:31"]
[BlackClock "0:00:03"]

1. d4 {[%clk 0:03:00]}  Nf6 {[%clk 0:02:54]} 2. c4 {[%clk 0:02:59]}  g6 {[%clk 0:02:53]} 3. Nc3 {[%clk 0:02:59]}  Bg7 {[%clk 0:02:53]} 4. e4 {[%clk 0:02:59]}  d6 {[%clk 0:02:53]} 5. Be2 {[%clk 0:02:59]}  O-O {[%clk 0:02:52]} 6. Nf3 {[%clk 0:03:00]}  e5 {[%clk 0:02:51]} 7. O-O {[%clk 0:03:00]}  Nc6 {[%clk 0:02:52]} 8. d5 {[%clk 0:03:00]}  Ne7 {[%clk 0:02:52]} 9. Ne1 {[%clk 0:03:01]}  Ne8 {[%clk 0:02:52]} 10. Be3 {[%clk 0:03:01]}  f5 {[%clk 0:02:53]} 11. f3 {[%clk 0:03:02]}  f4 {[%clk 0:02:53]} 12. Bf2 {[%clk 0:03:03]}  g5 {[%clk 0:02:53]} 13. c5 {[%clk 0:03:03]}  Ng6 {[%clk 0:02:53]} 14. a4 {[%clk 0:03:04]}  Rf7 {[%clk 0:02:53]} 15. a5 {[%clk 0:03:04]}  Bf8 {[%clk 0:02:51]} 16. cxd6 {[%clk 0:03:05]}  cxd6 {[%clk 0:02:44]} 17. Nb5 {[%clk 0:03:02]}  a6 {[%clk 0:02:42]} 18. Na3 {[%clk 0:03:02]}  Qxa5 {[%clk 0:02:31]} 19. Nc4 {[%clk 0:03:02]}  Qd8 {[%clk 0:02:31]} 20. Nb6 {[%clk 0:03:03]}  Rb8 {[%clk 0:02:32]} 21. Rc1 {[%clk 0:03:03]}  Nf6 {[%clk 0:02:19]} 22. Qb3 {[%clk 0:02:59]}  g4 {[%clk 0:02:14]} 23. Nd3 {[%clk 0:02:54]}  g3 {[%clk 0:01:48]} 24. hxg3 {[%clk 0:02:55]}  fxg3 {[%clk 0:01:49]} 25. Bxg3 {[%clk 0:02:55]}  Bh6 {[%clk 0:01:49]} 26. Rxc8 {[%clk 0:02:52]}  Rxc8 {[%clk 0:01:49]} 27. Nxc8 {[%clk 0:02:53]}  Qxc8 {[%clk 0:01:49]} 28. Qb6 {[%clk 0:02:50]}  Nh5 {[%clk 0:01:24]} 29. Bh2 {[%clk 0:02:41]}  Qd7 {[%clk 0:01:10]} 30. b4 {[%clk 0:02:10]}  Rg7 {[%clk 0:01:03]} 31. g4 {[%clk 0:02:08]}  Nhf4 {[%clk 0:00:58]} 32. Nxf4 {[%clk 0:02:08]}  Bxf4 {[%clk 0:00:55]} 33. b5 {[%clk 0:01:52]}  Bxh2+ {[%clk 0:00:47]} 34. Kxh2 {[%clk 0:01:52]}  Qe7 {[%clk 0:00:36]} 35. Qf2 {[%clk 0:01:42]}  a5 {[%clk 0:00:18]} 36. Rc1 {[%clk 0:01:39]}  h5 {[%clk 0:00:09]} 37. Rc8+ {[%clk 0:01:38]}  Kh7 {[%clk 0:00:09]} 38. b6 {[%clk 0:01:27]}  Nf4 {[%clk 0:00:06]} 39. Rc7 {[%clk 0:01:20]}  Qd8 {[%clk 0:00:05]} 40. Rxg7+ {[%clk 0:01:14]}  Kxg7 {[%clk 0:00:06]} 41. gxh5 {[%clk 0:01:13]}  Qg5 {[%clk 0:00:02]} 42. Bf1 {[%clk 0:01:01]}  Qxh5+ {[%clk 0:00:02]} 43. Kg1 {[%clk 0:01:01]}  Qg5+ {[%clk 0:00:02]} 44. Kh2 {[%clk 0:01:02]}  Kf6 {[%clk 0:00:03]} 45. Qg3 {[%clk 0:00:57]}  a4 {[%clk 0:00:01]} 46. Qxg5+ {[%clk 0:00:54]}  Kxg5 {[%clk 0:00:02]} 47. Kg3 {[%clk 0:00:38]}  a3 {[%clk 0:00:02]} 48. Bc4 {[%clk 0:00:38]}  Nd3 {[%clk 0:00:03]} 49. f4+ {[%clk 0:00:31]}  exf4+ {[%clk 0:00:03]} 50. Kf3 {[%clk 0:00:32]}  Ne5+ {[%clk 0:00:03]} 51. Ke2 {[%clk 0:00:31]}  Nxc4 {[%clk 0:00:03]} 0-1


[Site "https://www.chess.com"]

[Event "Titled Tuesday Blitz June 28 Late 2022"]
[White "Bayo Milagro, Alvaro"]
[Black "Mickiewicz, Piotr"]
[WhiteFideId "22275240"]
[BlackFideId "1114891"]
[WhiteElo "2270"]
[BlackElo "2209"]
[Result "1-0"]
[Round "07"]
[TimeControl "180+1"]
[Date "2022.06.28"]
[WhiteClock "0:01:05"]
[BlackClock "0:00:27"]

1. d4 {[%clk 0:03:00]}  Nf6 {[%clk 0:02:58]} 2. Nf3 {[%clk 0:02:59]}  c5 {[%clk 0:02:58]} 3. d5 {[%clk 0:02:59]}  e6 {[%clk 0:02:58]} 4. c4 {[%clk 0:02:59]}  exd5 {[%clk 0:02:57]} 5. cxd5 {[%clk 0:03:00]}  d6 {[%clk 0:02:58]} 6. Nc3 {[%clk 0:03:01]}  a6 {[%clk 0:02:58]} 7. a4 {[%clk 0:03:00]}  g6 {[%clk 0:02:59]} 8. Nd2 {[%clk 0:03:00]}  Bg7 {[%clk 0:02:57]} 9. e4 {[%clk 0:03:01]}  O-O {[%clk 0:02:57]} 10. Be2 {[%clk 0:03:02]}  Qc7 {[%clk 0:02:52]} 11. O-O {[%clk 0:03:00]}  Nbd7 {[%clk 0:02:52]} 12. Qc2 {[%clk 0:02:55]}  Re8 {[%clk 0:02:46]} 13. f4 {[%clk 0:02:33]}  c4 {[%clk 0:02:32]} 14. Kh1 {[%clk 0:02:33]}  Nc5 {[%clk 0:02:29]} 15. e5 {[%clk 0:02:34]}  Bf5 {[%clk 0:02:27]} 16. Qd1 {[%clk 0:02:26]}  dxe5 {[%clk 0:02:23]} 17. Nxc4 {[%clk 0:02:24]}  e4 {[%clk 0:02:09]} 18. Be3 {[%clk 0:02:19]}  Nd3 {[%clk 0:02:05]} 19. Qb3 {[%clk 0:02:11]}  Nd7 {[%clk 0:01:15]} 20. g4 {[%clk 0:01:49]}  N3c5 {[%clk 0:01:07]} 21. Qc2 {[%clk 0:01:41]}  Bxc3 {[%clk 0:00:45]} 22. Qxc3 {[%clk 0:01:27]}  Bxg4 {[%clk 0:00:44]} 23. Bxg4 {[%clk 0:01:25]}  Nf6 {[%clk 0:00:40]} 24. Qxf6 {[%clk 0:01:21]}  Nb3 {[%clk 0:00:36]} 25. Rac1 {[%clk 0:01:08]}  Nxc1 {[%clk 0:00:33]} 26. Bd4 {[%clk 0:01:08]}  Kf8 {[%clk 0:00:29]} 27. d6 {[%clk 0:01:05]}  Qxc4 {[%clk 0:00:27]} 28. Qg7# {[%clk 0:01:05]} 1-0


[Site "https://www.chess.com"]

[Event "Titled Tuesday Blitz June 28 Late 2022"]
[White "Bjelobrk, Igor"]
[Black "Livaic, Leon"]
[WhiteFideId "4300726"]
[BlackFideId "14531534"]
[WhiteElo "2335"]
[BlackElo "2540"]
[Result "1-0"]
[Round "07"]
[TimeControl "180+1"]
[Date "2022.06.28"]
[WhiteClock "0:00:15"]
[BlackClock "0:00:02"]

1. Nf3 {[%clk 0:02:57]}  Nf6 {[%clk 0:02:56]} 2. c4 {[%clk 0:02:56]}  b6 {[%clk 0:02:55]} 3. g3 {[%clk 0:02:56]}  Bb7 {[%clk 0:02:56]} 4. Bg2 {[%clk 0:02:56]}  c5 {[%clk 0:02:56]} 5. d4 {[%clk 0:02:54]}  cxd4 {[%clk 0:02:57]} 6. Qxd4 {[%clk 0:02:55]}  g6 {[%clk 0:02:55]} 7. Nc3 {[%clk 0:02:54]}  Bg7 {[%clk 0:02:55]} 8. O-O {[%clk 0:02:51]}  d6 {[%clk 0:02:55]} 9. Rd1 {[%clk 0:02:32]}  Nbd7 {[%clk 0:02:54]} 10. Be3 {[%clk 0:02:30]}  Rc8 {[%clk 0:02:51]} 11. Rac1 {[%clk 0:02:30]}  a6 {[%clk 0:02:52]} 12. b3 {[%clk 0:02:23]}  O-O {[%clk 0:02:51]} 13. Qh4 {[%clk 0:02:23]}  Re8 {[%clk 0:02:52]} 14. g4 {[%clk 0:02:19]}  Rc7 {[%clk 0:02:32]} 15. Bh3 {[%clk 0:02:11]}  Qa8 {[%clk 0:02:17]} 16. g5 {[%clk 0:02:07]}  Ne4 {[%clk 0:02:12]} 17. Nd5 {[%clk 0:02:00]}  Bxd5 {[%clk 0:02:09]} 18. Rxd5 {[%clk 0:02:01]}  e6 {[%clk 0:01:50]} 19. Rdd1 {[%clk 0:01:39]}  b5 {[%clk 0:01:43]} 20. Bg2 {[%clk 0:01:36]}  bxc4 {[%clk 0:01:43]} 21. Nd2 {[%clk 0:01:24]}  d5 {[%clk 0:01:38]} 22. Nxe4 {[%clk 0:01:20]}  dxe4 {[%clk 0:01:38]} 23. Bxe4 {[%clk 0:01:20]}  Qc8 {[%clk 0:01:37]} 24. Rxc4 {[%clk 0:01:17]}  Rxc4 {[%clk 0:01:36]} 25. bxc4 {[%clk 0:01:18]}  Nc5 {[%clk 0:01:29]} 26. Bf3 {[%clk 0:01:14]}  Qc7 {[%clk 0:01:17]} 27. Kg2 {[%clk 0:01:07]}  Rc8 {[%clk 0:01:08]} 28. Qg4 {[%clk 0:01:02]}  Nd7 {[%clk 0:01:07]} 29. Qe4 {[%clk 0:00:54]}  Nc5 {[%clk 0:00:51]} 30. Qc2 {[%clk 0:00:46]}  Be5 {[%clk 0:00:47]} 31. h4 {[%clk 0:00:39]}  Bf4 {[%clk 0:00:46]} 32. Qc1 {[%clk 0:00:27]}  Bxe3 {[%clk 0:00:46]} 33. Qxe3 {[%clk 0:00:28]}  Na4 {[%clk 0:00:40]} 34. Rc1 {[%clk 0:00:28]}  Qc5 {[%clk 0:00:28]} 35. Qf4 {[%clk 0:00:23]}  Nb6 {[%clk 0:00:25]} 36. Bb7 {[%clk 0:00:19]}  Rd8 {[%clk 0:00:24]} 37. Bxa6 {[%clk 0:00:17]}  Rd4 {[%clk 0:00:18]} 38. Qg3 {[%clk 0:00:17]}  Nd5 {[%clk 0:00:10]} 39. cxd5 {[%clk 0:00:14]}  Qxc1 {[%clk 0:00:09]} 40. Qb8+ {[%clk 0:00:14]}  Kg7 {[%clk 0:00:06]} 41. Qe5+ {[%clk 0:00:15]}  f6 {[%clk 0:00:06]} 42. Qxd4 {[%clk 0:00:15]}  e5 {[%clk 0:00:05]} 43. Qc4 {[%clk 0:00:14]}  Qa3 {[%clk 0:00:03]} 44. Qc7+ {[%clk 0:00:14]}  Kf8 {[%clk 0:00:02]} 45. gxf6 {[%clk 0:00:15]} 1-0


[Site "https://www.chess.com"]

[Event "Titled Tuesday Blitz June 28 Late 2022"]
[White "Bongo Akanga Ndjila, Barthelemy"]
[Black "Yeshchenko, Uliana"]
[WhiteFideId "10609431"]
[BlackFideId "14187272"]
[WhiteElo "1768"]
[BlackElo "1890"]
[Result "0-1"]
[Round "07"]
[TimeControl "180+1"]
[Date "2022.06.29"]
[WhiteClock "0:00:13"]
[BlackClock "0:02:41"]

1. d4 {[%clk 0:00:21]}  d5 {[%clk 0:02:56]} 2. c4 {[%clk 0:00:22]}  e6 {[%clk 0:02:56]} 3. Nc3 {[%clk 0:00:21]}  a6 {[%clk 0:02:57]} 4. cxd5 {[%clk 0:00:21]}  exd5 {[%clk 0:02:58]} 5. Nf3 {[%clk 0:00:21]}  c6 {[%clk 0:02:58]} 6. g3 {[%clk 0:00:21]}  Bd6 {[%clk 0:02:56]} 7. Bg2 {[%clk 0:00:20]}  Nf6 {[%clk 0:02:57]} 8. O-O {[%clk 0:00:20]}  O-O {[%clk 0:02:56]} 9. Bg5 {[%clk 0:00:21]}  Be6 {[%clk 0:02:54]} 10. Rb1 {[%clk 0:00:19]}  Nbd7 {[%clk 0:02:53]} 11. b4 {[%clk 0:00:19]}  h6 {[%clk 0:02:53]} 12. Bc1 {[%clk 0:00:18]}  Nb6 {[%clk 0:02:52]} 13. a4 {[%clk 0:00:18]}  Nc4 {[%clk 0:02:51]} 14. b5 {[%clk 0:00:18]}  axb5 {[%clk 0:02:51]} 15. axb5 {[%clk 0:00:18]}  c5 {[%clk 0:02:51]} 16. dxc5 {[%clk 0:00:17]}  Bxc5 {[%clk 0:02:52]} 17. Nd4 {[%clk 0:00:16]}  Qb6 {[%clk 0:02:42]} 18. e4 {[%clk 0:00:13]}  Bxd4 {[%clk 0:02:41]} 0-1


[Site "https://www.chess.com"]

[Event "Titled Tuesday Blitz June 28 Late 2022"]
[White "Colpe, Malte"]
[Black "Kaganskiy, Gleb"]
[WhiteFideId "24623075"]
[BlackFideId "4132025"]
[WhiteElo "2328"]
[BlackElo "2165"]
[Result "1/2-1/2"]
[Round "07"]
[TimeControl "180+1"]
[Date "2022.06.29"]
[WhiteClock "0:00:37"]
[BlackClock "0:00:07"]

1. e4 {[%clk 0:03:00]}  g6 {[%clk 0:03:00]} 2. d4 {[%clk 0:02:58]}  Nf6 {[%clk 0:03:01]} 3. e5 {[%clk 0:02:56]}  Nh5 {[%clk 0:03:01]} 4. Be2 {[%clk 0:02:54]}  d6 {[%clk 0:03:01]} 5. exd6 {[%clk 0:02:52]}  cxd6 {[%clk 0:02:53]} 6. Bxh5 {[%clk 0:02:50]}  Qa5+ {[%clk 0:02:50]} 7. Nc3 {[%clk 0:02:48]}  Qxh5 {[%clk 0:02:49]} 8. Qxh5 {[%clk 0:02:47]}  gxh5 {[%clk 0:02:49]} 9. Bf4 {[%clk 0:02:31]}  Rg8 {[%clk 0:02:47]} 10. g3 {[%clk 0:02:29]}  Bg7 {[%clk 0:02:44]} 11. O-O-O {[%clk 0:02:29]}  Nc6 {[%clk 0:02:43]} 12. d5 {[%clk 0:02:14]}  Ne5 {[%clk 0:02:42]} 13. Nb5 {[%clk 0:02:05]}  Kd8 {[%clk 0:02:35]} 14. Nd4 {[%clk 0:02:04]}  Bg4 {[%clk 0:02:22]} 15. f3 {[%clk 0:02:03]}  Bd7 {[%clk 0:02:18]} 16. b3 {[%clk 0:02:02]}  Rc8 {[%clk 0:02:16]} 17. Kb1 {[%clk 0:02:00]}  b5 {[%clk 0:02:14]} 18. Nge2 {[%clk 0:01:58]}  b4 {[%clk 0:02:11]} 19. Rhe1 {[%clk 0:01:39]}  a5 {[%clk 0:02:07]} 20. Bxe5 {[%clk 0:01:38]}  Bxe5 {[%clk 0:02:05]} 21. f4 {[%clk 0:01:39]}  Bf6 {[%clk 0:01:55]} 22. h4 {[%clk 0:01:39]}  Bxd4 {[%clk 0:01:14]} 23. Rxd4 {[%clk 0:01:37]}  Bg4 {[%clk 0:01:13]} 24. Ng1 {[%clk 0:01:25]}  Rc3 {[%clk 0:01:13]} 25. Rd3 {[%clk 0:01:23]}  Rxd3 {[%clk 0:01:12]} 26. cxd3 {[%clk 0:01:24]}  Bf5 {[%clk 0:01:13]} 27. Re3 {[%clk 0:01:22]}  Bg4 {[%clk 0:01:08]} 28. Nf3 {[%clk 0:01:17]}  Bxf3 {[%clk 0:01:07]} 29. Rxf3 {[%clk 0:01:17]}  Kd7 {[%clk 0:01:08]} 30. Kc2 {[%clk 0:01:07]}  Rc8+ {[%clk 0:01:08]} 31. Kd2 {[%clk 0:01:07]}  Rc5 {[%clk 0:01:08]} 32. d4 {[%clk 0:01:04]}  Rxd5 {[%clk 0:01:07]} 33. Ke3 {[%clk 0:01:04]}  Rb5 {[%clk 0:01:04]} 34. f5 {[%clk 0:01:00]}  f6 {[%clk 0:00:59]} 35. Kf4 {[%clk 0:00:48]}  Rb7 {[%clk 0:00:54]} 36. g4 {[%clk 0:00:46]}  hxg4 {[%clk 0:00:54]} 37. Kxg4 {[%clk 0:00:47]}  Rc7 {[%clk 0:00:54]} 38. Kh5 {[%clk 0:00:46]}  Rc3 {[%clk 0:00:52]} 39. Rf4 {[%clk 0:00:44]}  Rc2 {[%clk 0:00:42]} 40. Kh6 {[%clk 0:00:44]}  Rxa2 {[%clk 0:00:42]} 41. Kxh7 {[%clk 0:00:44]}  Rb2 {[%clk 0:00:33]} 42. Rf3 {[%clk 0:00:41]}  Rd2 {[%clk 0:00:30]} 43. h5 {[%clk 0:00:39]}  Rxd4 {[%clk 0:00:25]} 44. Rh3 {[%clk 0:00:37]}  Rg4 {[%clk 0:00:24]} 45. h6 {[%clk 0:00:37]}  d5 {[%clk 0:00:22]} 46. Kh8 {[%clk 0:00:38]}  d4 {[%clk 0:00:23]} 47. h7 {[%clk 0:00:38]}  Kd6 {[%clk 0:00:21]} 48. Rg3 {[%clk 0:00:37]}  Rxg3 {[%clk 0:00:07]} 1/2-1/2


[Site "https://www.chess.com"]

[Event "Titled Tuesday Blitz June 28 Late 2022"]
[White "Desideri, Ricardo Maruchi"]
[Black "Romero Ruscalleda, Josep"]
[WhiteFideId "2110440"]
[BlackFideId "2231859"]
[WhiteElo "1945"]
[BlackElo "2273"]
[Result "1-0"]
[Round "07"]
[TimeControl "180+1"]
[Date "2022.06.29"]
[WhiteClock "0:00:03"]
[BlackClock "0:00:06"]

1. e4 {[%clk 0:02:45]}  g6 {[%clk 0:03:00]} 2. d4 {[%clk 0:02:44]}  Bg7 {[%clk 0:03:01]} 3. c4 {[%clk 0:02:44]}  d6 {[%clk 0:03:01]} 4. Nc3 {[%clk 0:02:44]}  e5 {[%clk 0:03:01]} 5. d5 {[%clk 0:02:43]}  Ne7 {[%clk 0:03:01]} 6. Be2 {[%clk 0:02:42]}  f5 {[%clk 0:03:01]} 7. Nf3 {[%clk 0:02:37]}  O-O {[%clk 0:03:00]} 8. Ng5 {[%clk 0:02:37]}  h6 {[%clk 0:02:57]} 9. Ne6 {[%clk 0:02:37]}  Bxe6 {[%clk 0:02:56]} 10. dxe6 {[%clk 0:02:37]}  Nbc6 {[%clk 0:02:55]} 11. O-O {[%clk 0:02:35]}  Nd4 {[%clk 0:02:55]} 12. exf5 {[%clk 0:02:32]}  Nexf5 {[%clk 0:02:51]} 13. Bf3 {[%clk 0:02:13]}  c6 {[%clk 0:02:47]} 14. Be3 {[%clk 0:02:04]}  Nxe6 {[%clk 0:02:35]} 15. Ne4 {[%clk 0:02:01]}  Nfd4 {[%clk 0:02:02]} 16. Bg4 {[%clk 0:01:52]}  d5 {[%clk 0:02:00]} 17. Bxe6+ {[%clk 0:01:50]}  Nxe6 {[%clk 0:01:57]} 18. cxd5 {[%clk 0:01:50]}  cxd5 {[%clk 0:01:57]} 19. Ng3 {[%clk 0:01:31]}  Rf7 {[%clk 0:01:42]} 20. Qd2 {[%clk 0:01:28]}  Kh7 {[%clk 0:01:39]} 21. f4 {[%clk 0:01:20]}  d4 {[%clk 0:01:36]} 22. f5 {[%clk 0:01:17]}  gxf5 {[%clk 0:01:25]} 23. Bf2 {[%clk 0:01:00]}  Qg5 {[%clk 0:01:15]} 24. Qc2 {[%clk 0:00:55]}  e4 {[%clk 0:01:04]} 25. Be1 {[%clk 0:00:23]}  Raf8 {[%clk 0:00:49]} 26. Bb4 {[%clk 0:00:16]}  Re8 {[%clk 0:00:39]} 27. Nxe4 {[%clk 0:00:15]}  Qe3+ {[%clk 0:00:34]} 28. Nf2 {[%clk 0:00:14]}  Nf4 {[%clk 0:00:28]} 29. Rae1 {[%clk 0:00:10]}  Ne2+ {[%clk 0:00:28]} 30. Kh1 {[%clk 0:00:07]}  b6 {[%clk 0:00:15]} 31. Nd1 {[%clk 0:00:07]}  Qe5 {[%clk 0:00:06]} 32. Bd2 {[%clk 0:00:03]} 1-0


[Site "https://www.chess.com"]

[Event "Titled Tuesday Blitz June 28 Late 2022"]
[White "Djokic, Mihailo"]
[Black "Svane, Rasmus"]
[WhiteFideId "976440"]
[BlackFideId "4657101"]
[WhiteElo "2255"]
[BlackElo "2674"]
[Result "0-1"]
[Round "07"]
[TimeControl "180+1"]
[Date "2022.06.28"]
[WhiteClock "0:01:03"]
[BlackClock "0:01:28"]

1. e4 {[%clk 0:03:00]}  c6 {[%clk 0:02:59]} 2. d4 {[%clk 0:03:00]}  d5 {[%clk 0:03:00]} 3. e5 {[%clk 0:03:01]}  Bf5 {[%clk 0:03:01]} 4. h4 {[%clk 0:03:01]}  h5 {[%clk 0:03:01]} 5. Bg5 {[%clk 0:03:01]}  Qb6 {[%clk 0:03:01]} 6. Bd3 {[%clk 0:03:02]}  Qxd4 {[%clk 0:03:01]} 7. Nf3 {[%clk 0:03:02]}  Qg4 {[%clk 0:03:02]} 8. Bxf5 {[%clk 0:03:02]}  Qxf5 {[%clk 0:03:03]} 9. O-O {[%clk 0:03:03]}  f6 {[%clk 0:03:03]} 10. c4 {[%clk 0:03:02]}  e6 {[%clk 0:02:51]} 11. exf6 {[%clk 0:02:53]}  gxf6 {[%clk 0:02:43]} 12. Nd4 {[%clk 0:02:53]}  Qg4 {[%clk 0:02:29]} 13. f3 {[%clk 0:02:49]}  Qg3 {[%clk 0:02:29]} 14. cxd5 {[%clk 0:02:22]}  fxg5 {[%clk 0:02:20]} 15. Nxe6 {[%clk 0:02:17]}  Bd6 {[%clk 0:02:19]} 16. f4 {[%clk 0:02:02]}  gxh4 {[%clk 0:01:58]} 17. dxc6 {[%clk 0:01:52]}  h3 {[%clk 0:01:58]} 18. Qe2 {[%clk 0:01:39]}  Nxc6 {[%clk 0:01:43]} 19. Nc7+ {[%clk 0:01:21]}  Kd7 {[%clk 0:01:42]} 20. Nxa8 {[%clk 0:01:18]}  Nf6 {[%clk 0:01:42]} 21. Kh1 {[%clk 0:01:12]}  Rg8 {[%clk 0:01:40]} 22. Rg1 {[%clk 0:01:03]}  Ng4 {[%clk 0:01:28]} 0-1


[Site "https://www.chess.com"]

[Event "Titled Tuesday Blitz June 28 Late 2022"]
[White "Donatti, Alvaro"]
[Black "Rosenberg, Evan S"]
[WhiteFideId "3000303"]
[BlackFideId "2019299"]
[WhiteElo "2138"]
[BlackElo "2198"]
[Result "0-1"]
[Round "07"]
[TimeControl "180+1"]
[Date "2022.06.29"]
[WhiteClock "0:01:10"]
[BlackClock "0:01:04"]

1. e4 {[%clk 0:03:00]}  e6 {[%clk 0:02:59]} 2. d4 {[%clk 0:02:59]}  d5 {[%clk 0:03:00]} 3. e5 {[%clk 0:03:00]}  c5 {[%clk 0:03:00]} 4. c3 {[%clk 0:03:00]}  Nc6 {[%clk 0:03:01]} 5. Nf3 {[%clk 0:03:00]}  Qb6 {[%clk 0:03:01]} 6. Bd3 {[%clk 0:02:58]}  cxd4 {[%clk 0:03:01]} 7. cxd4 {[%clk 0:02:56]}  Bd7 {[%clk 0:03:00]} 8. Bc2 {[%clk 0:02:55]}  Rc8 {[%clk 0:02:55]} 9. Nc3 {[%clk 0:02:49]}  a6 {[%clk 0:02:48]} 10. O-O {[%clk 0:02:48]}  Be7 {[%clk 0:02:27]} 11. a3 {[%clk 0:02:47]}  Na5 {[%clk 0:02:23]} 12. Kh1 {[%clk 0:02:24]}  Nc4 {[%clk 0:02:08]} 13. Rb1 {[%clk 0:02:08]}  Qa7 {[%clk 0:01:57]} 14. Qd3 {[%clk 0:01:50]}  h5 {[%clk 0:01:25]} 15. Ng5 {[%clk 0:01:39]}  Nh6 {[%clk 0:01:14]} 16. Qf3 {[%clk 0:01:32]}  Qxd4 {[%clk 0:01:10]} 17. Re1 {[%clk 0:01:18]}  Nd2 {[%clk 0:01:07]} 18. Bxd2 {[%clk 0:01:10]}  Qxd2 {[%clk 0:01:04]} 19. Re2 {[%clk 0:01:10]}  Qxg5 {[%clk 0:01:04]} 0-1


[Site "https://www.chess.com"]

[Event "Titled Tuesday Blitz June 28 Late 2022"]
[White "Fernandez Siles, Luis"]
[Black "Popilski, Gil"]
[WhiteFideId "2209420"]
[BlackFideId "2809060"]
[WhiteElo "2211"]
[BlackElo "2537"]
[Result "0-1"]
[Round "07"]
[TimeControl "180+1"]
[Date "2022.06.29"]
[WhiteClock "0:01:01"]
[BlackClock "0:01:41"]

1. b3 {[%clk 0:02:59]}  e5 {[%clk 0:02:50]} 2. Bb2 {[%clk 0:02:59]}  f6 {[%clk 0:02:51]} 3. c4 {[%clk 0:02:55]}  Ne7 {[%clk 0:02:49]} 4. Nc3 {[%clk 0:02:55]}  d5 {[%clk 0:02:49]} 5. cxd5 {[%clk 0:02:54]}  Nxd5 {[%clk 0:02:49]} 6. e3 {[%clk 0:02:51]}  Nb4 {[%clk 0:02:44]} 7. d3 {[%clk 0:02:50]}  c5 {[%clk 0:02:39]} 8. a3 {[%clk 0:02:48]}  Nd5 {[%clk 0:02:36]} 9. Nxd5 {[%clk 0:02:42]}  Qxd5 {[%clk 0:02:34]} 10. Nf3 {[%clk 0:02:42]}  Be6 {[%clk 0:02:34]} 11. Nd2 {[%clk 0:02:42]}  Nc6 {[%clk 0:02:33]} 12. Be2 {[%clk 0:02:15]}  Qxg2 {[%clk 0:02:27]} 13. Bf3 {[%clk 0:02:16]}  Qh3 {[%clk 0:02:10]} 14. b4 {[%clk 0:01:57]}  Rd8 {[%clk 0:01:58]} 15. Qa4 {[%clk 0:01:56]}  Rxd3 {[%clk 0:01:53]} 16. Ke2 {[%clk 0:01:24]}  Rxd2+ {[%clk 0:01:50]} 17. Kxd2 {[%clk 0:01:18]}  Qxf3 {[%clk 0:01:51]} 18. Rhf1 {[%clk 0:01:09]}  Bc4 {[%clk 0:01:46]} 19. b5 {[%clk 0:01:01]}  Qe2+ {[%clk 0:01:41]} 0-1


[Site "https://www.chess.com"]

[Event "Titled Tuesday Blitz June 28 Late 2022"]
[White "Glavina, Pablo"]
[Black "Florescu, Codrut-Constantin"]
[WhiteFideId "100234"]
[BlackFideId "1202200"]
[WhiteElo "2369"]
[BlackElo "2191"]
[Result "1-0"]
[Round "07"]
[TimeControl "180+1"]
[Date "2022.06.29"]
[WhiteClock "0:00:36"]
[BlackClock "0:00:31"]

1. e4 {[%clk 0:03:00]}  c5 {[%clk 0:02:59]} 2. Nf3 {[%clk 0:03:00]}  e6 {[%clk 0:02:59]} 3. d3 {[%clk 0:02:59]}  d5 {[%clk 0:02:58]} 4. Qe2 {[%clk 0:02:57]}  Nf6 {[%clk 0:02:58]} 5. g3 {[%clk 0:02:57]}  Nc6 {[%clk 0:02:58]} 6. Bg2 {[%clk 0:02:56]}  Be7 {[%clk 0:02:58]} 7. O-O {[%clk 0:02:56]}  O-O {[%clk 0:02:59]} 8. e5 {[%clk 0:02:57]}  Ne8 {[%clk 0:02:59]} 9. c4 {[%clk 0:02:57]}  Nc7 {[%clk 0:02:58]} 10. Nc3 {[%clk 0:02:42]}  Rb8 {[%clk 0:02:54]} 11. b3 {[%clk 0:02:39]}  b5 {[%clk 0:02:54]} 12. Rd1 {[%clk 0:02:35]}  a5 {[%clk 0:02:52]} 13. a4 {[%clk 0:02:32]}  bxc4 {[%clk 0:02:48]} 14. bxc4 {[%clk 0:02:30]}  Nb4 {[%clk 0:02:45]} 15. Nb5 {[%clk 0:02:26]}  Nxb5 {[%clk 0:02:42]} 16. axb5 {[%clk 0:02:21]}  Bb7 {[%clk 0:02:41]} 17. Bf4 {[%clk 0:02:14]}  Ra8 {[%clk 0:02:41]} 18. Ra4 {[%clk 0:02:10]}  Qb6 {[%clk 0:02:27]} 19. h4 {[%clk 0:02:10]}  h6 {[%clk 0:02:27]} 20. h5 {[%clk 0:02:00]}  Rfd8 {[%clk 0:02:26]} 21. Rda1 {[%clk 0:01:56]}  dxc4 {[%clk 0:02:13]} 22. dxc4 {[%clk 0:01:57]}  Rd7 {[%clk 0:02:11]} 23. Ne1 {[%clk 0:01:49]}  Bxg2 {[%clk 0:02:07]} 24. Kxg2 {[%clk 0:01:49]}  Qb7+ {[%clk 0:01:58]} 25. Qf3 {[%clk 0:01:48]}  Qxf3+ {[%clk 0:01:56]} 26. Kxf3 {[%clk 0:01:48]}  Bd8 {[%clk 0:01:56]} 27. Be3 {[%clk 0:01:37]}  Bb6 {[%clk 0:01:55]} 28. Ke2 {[%clk 0:01:37]}  Rad8 {[%clk 0:01:54]} 29. Rxa5 {[%clk 0:01:31]}  Bxa5 {[%clk 0:01:54]} 30. Rxa5 {[%clk 0:01:32]}  Nd3 {[%clk 0:01:42]} 31. Nxd3 {[%clk 0:01:28]}  Rxd3 {[%clk 0:01:43]} 32. Bxc5 {[%clk 0:01:28]}  Rc3 {[%clk 0:01:38]} 33. Bd6 {[%clk 0:01:08]}  Rxc4 {[%clk 0:01:32]} 34. b6 {[%clk 0:01:08]}  Rc2+ {[%clk 0:01:31]} 35. Kf3 {[%clk 0:01:08]}  Rb2 {[%clk 0:01:32]} 36. Ra6 {[%clk 0:01:07]}  Rd7 {[%clk 0:01:27]} 37. Ra8+ {[%clk 0:00:58]}  Kh7 {[%clk 0:01:27]} 38. Rb8 {[%clk 0:00:56]}  f6 {[%clk 0:01:25]} 39. exf6 {[%clk 0:00:46]}  gxf6 {[%clk 0:01:15]} 40. Bc5 {[%clk 0:00:46]}  e5 {[%clk 0:01:09]} 41. Rc8 {[%clk 0:00:43]}  Rc2 {[%clk 0:01:00]} 42. Ke4 {[%clk 0:00:39]}  Rb7 {[%clk 0:00:32]} 43. Kf5 {[%clk 0:00:36]}  Rxb6 {[%clk 0:00:32]} 44. Rc7+ {[%clk 0:00:36]}  Kg8 {[%clk 0:00:31]} 45. Bxb6 {[%clk 0:00:36]} 1-0


[Site "https://www.chess.com"]